fUSD/lending_fUSD_20240802
["ID","MTS","AMOUNT","RATE_DAILY","PERIOD"]
[333873377,1722586238785,-1773.95845642,0.00019178,2]
[333873379,1722586238796,-845.57482597,0.00019178,2]
[333873381,1722586238808,-361.86697667,0.00019178,2]
[333873383,1722586238817,-215.89283513,0.00019178,2]
[333873385,1722586238828,-716.53939924,0.00019178,2]
[333873387,1722586238839,-1468.51478506,0.00019178,2]
[333873472,1722586239909,-953.34298057,0.00019178,2]
[333873474,1722586239919,-3354.29,0.00019178,2]
[333873476,1722586239929,-3354.29,0.00019178,2]
[333873478,1722586239938,-1434.72075057,0.00019178,2]
[333873480,1722586239951,-1919.56924943,0.00019178,2]
[333873482,1722586239961,-3354.29,0.00019178,2]
[333873484,1722586239971,-3354.29,0.00019178,2]
[333873486,1722586239981,-319.0695453,0.00019178,2]
[333873488,1722586239993,-3035.2204547,0.00019178,2]
[333873490,1722586240003,-3354.29,0.00019178,2]
[333873492,1722586240013,-2554.27340992,0.00019178,2]
[333873494,1722586240025,-800.01659008,0.00019178,2]
[333873496,1722586240034,-3354.39403863,0.00019178,2]
[333873498,1722586240044,-4923.13803281,0.0001923,2]
[333873500,1722586240056,-1045.16491761,0.0001923,2]
[333873502,1722586240066,-176.48388626,0.0001923,2]
[333873504,1722586240075,-155.000001,0.0001924,2]
[333873506,1722586240085,-3491.23,0.00019241,2]
[333873508,1722586240095,-1078.89166,0.0001926,2]
[333873510,1722586240104,-600.0,0.00019316,2]
[333873512,1722586240114,-284.54223049,0.00019341,2]
[333873514,1722586240124,-1000.0,0.00019341,2]
[333873516,1722586240134,-330.24945769,0.00019348,2]
[333873518,1722586240146,-155.29271001,0.00019352,2]
[333873519,1722586240155,-626.98537183,0.00019382,2]
[333873523,1722586240180,-2767.51670759,0.00019382,2]
[333873736,1722586243721,-1577.26132456,0.00019382,2]
[333873737,1722586243733,-996.53954644,0.00019382,2]
[333873738,1722586243744,-176.48388626,0.00019382,2]
[333873739,1722586243754,-155.47678054,0.00019387,2]
[333873740,1722586243763,-420.84978676,0.00019398,2]
[333873741,1722586243775,-125.40972698,0.00019398,2]
[333873742,1722586243785,-347.59086137,0.00019398,2]
[333873743,1722586243795,-236.25382,0.00019398,2]
[333873744,1722586243805,-149.38288946,0.000194,2]
[333873745,1722586243817,-344.61711054,0.000194,2]
[333873746,1722586243827,-15655.38288946,0.00019431,3]
[333873747,1722586243839,-1903.54310028,0.00019431,3]
[333873754,1722586483285,198.4,0.00025041,120]
[333873773,1722587432154,-664.57727663,0.000106,2]
[333873779,1722587433512,-2600.0,0.000106,2]
[333873780,1722587433524,-3271.3746507,0.000106,2]
[333873781,1722587433533,-332.63996955,0.00010699,2]
[333873782,1722587433543,-175.83033904,0.00010799,2]
[333873783,1722587433552,-175.83033904,0.00010889,2]
[333873784,1722587433562,-198.0,0.00010988,2]
[333873785,1722587433571,-3324.53752603,0.00010989,2]
[333873786,1722587433581,-155.36,0.0001099,2]
[333873787,1722587433591,-1344.19320872,0.00010997,2]
[333873788,1722587433600,-150.0,0.00010999,2]
[333873789,1722587433610,-315.84420633,0.00010999,2]
[333873790,1722587433619,-21929.10859505,0.00011,2]
[333873791,1722587433631,-84109.97025138,0.00011,2]
[333873792,1722587433646,-6122.07796153,0.00011,2]
[333873797,1722587438002,-6923.97634871,0.00011,2]
[333873798,1722587438098,-905.40291424,0.00011,2]
[333873809,1722587438510,-1541.68026684,0.00011,2]
[333873813,1722587438523,-132523.99999999,0.00011,2]
[333873986,1722587440177,-3150.95613876,0.00011,2]
[333874254,1722587443247,-1662.52444659,0.00011,2]
[333874265,1722587443355,-12863.4,0.00011,2]
[333874560,1722587446259,-8076.5336058,0.00011,2]
[333874562,1722587446271,-1336.48722856,0.00011,2]
[333874587,1722587446497,-1627.60836089,0.00011,2]
[333874594,1722587446559,-63634.1887,0.00011,2]
[333874596,1722587446571,-27444.66588,0.00011,2]
[333874598,1722587446582,-108086.399988,0.00011,2]
[333874599,1722587446592,-181405.08919966,0.00011,2]
[333874624,1722587598922,-15474.1268,0.000105,2]
[333874625,1722587598944,-345.02788869,0.00010507,2]
[333874626,1722587598968,-300.0,0.000106,3]
[333874627,1722587598991,-600.0,0.000107,3]
[333874628,1722587599013,-1000.0,0.000108,3]
[333874629,1722587599039,-6350.0,0.0001089,2]
[333874630,1722587599062,-1300.0,0.000109,3]
[333874631,1722587599083,-330.24945769,0.000109,2]
[333874632,1722587599105,-1027.71699928,0.000109,2]
[333874633,1722587599132,-175183.50115434,0.00011,2]
[333874634,1722587757428,1112297.19132916,0.00027,120]
[333874636,1722588314655,150.0,9.888e-05,2]
[333874637,1722588373719,158.8537484,9.888e-05,2]
[333874638,1722588377170,240.66290265,9.888e-05,2]
[333874639,1722588381024,14450.48334895,9.888e-05,2]
[333874640,1722588381048,4375.76180898,9.888e-05,2]
[333874641,1722588382361,155.0,9.888e-05,2]
[333874642,1722588385194,594.08450703,9.888e-05,2]
[333874643,1722588392087,363.69508992,9.888e-05,2]
[333874644,1722588398599,155.55923325,9.888e-05,2]
[333874645,1722588399774,411.54934528,9.888e-05,2]
[333874646,1722588403643,790.49086952,9.888e-05,2]
[333874647,1722588412340,1370.09326791,9.888e-05,2]
[333874648,1722588415308,155.10377634,9.888e-05,2]
[333874649,1722588477104,18826.24515793,9.888e-05,2]
[333874650,1722588491258,18826.24515793,9.888e-05,2]
[333874651,1722588493380,155.17869383,9.888e-05,2]
[333874652,1722588509006,258.74710049,9.839e-05,2]
[333874653,1722588526647,287.39097779,9.888e-05,2]
[333874654,1722588603720,150.0,9.888e-05,2]
[333874655,1722588603905,150.0,9.888e-05,2]
[333874656,1722588605586,150.41876996,9.888e-05,2]
[333874657,1722588616879,360.7,9.707e-05,2]
[333874658,1722588632248,-150.0,0.00010877,2]
[333874659,1722588632258,-322.14322502,0.0001089,2]
[333874660,1722588632270,-2677.85677498,0.0001089,2]
[333874661,1722588632279,-212.1113,0.000109,2]
[333874662,1722588632288,-170.81662991,0.000109,2]
[333874663,1722588632298,-361.25640153,0.000109,2]
[333874664,1722588632310,-16.48060772,0.000109,2]
[333874665,1722588632320,-300.0,0.00010985,2]
[333874666,1722588632331,-176.76776976,0.00010986,2]
[333874667,1722588632342,-508.53902408,0.00010986,2]
[333874668,1722588632352,-248.97445167,0.00010986,2]
[333874669,1722588632362,-330.24945769,0.00010986,2]
[333874670,1722588632371,-161.8,0.0001099,2]
[333874671,1722588632381,-901.09542361,0.00011,2]
[333874672,1722588632392,-3831.37609416,0.00011,2]
[333874673,1722588632404,-711.72882134,0.00011,2]
[333874674,1722588632415,-455.85444,0.00011,2]
[333874675,1722588632430,-408.82956114,0.00011,2]
[333874676,1722588632441,-299.6900001,0.00011,2]
[333874677,1722588632452,-432.000004,0.00011,2]
[333874678,1722588632463,-5367.40846028,0.00011,2]
[333874679,1722588632475,-389.84087267,0.00011,2]
[333874680,1722588632486,-1033.7,0.00011,2]
[333874681,1722588632501,-4475.52028849,0.00011,2]
[333874682,1722588632512,-322745.00000004,0.00011,2]
[333874683,1722588632524,-337.01913656,0.00011,2]
[333874684,1722588632535,-3403.28119051,0.00011,2]
[333874685,1722588632545,-748.65194149,0.00011,2]
[333874686,1722588632556,-335.08950845,0.00011,2]
[333874687,1722588632567,-276.52,0.00011,2]
[333874688,1722588632579,-4866.61354802,0.00011,2]
[333874689,1722588632592,-2906.62554695,0.00011,2]
[333874690,1722588632603,-9291.90858639,0.00011,2]
[333874691,1722588632614,-9208.21907029,0.00011,2]
[333874694,1722588632625,-983.93148964,0.00011,2]
[333874698,1722588632666,-475.85538,0.00011,2]
[333874700,1722588632677,-322.5,0.00011,2]
[333874702,1722588632688,-3255.09037,0.00011,2]
[333874703,1722588632704,-1003.44,0.00011,2]
[333874704,1722588632714,-16111.62800063,0.00011,2]
[333874705,1722588632726,-800.77686585,0.00011,2]
[333874706,1722588632740,-439.31847844,0.00011,2]
[333874707,1722588632751,-3434.7094964,0.00011,2]
[333874712,1722588639268,-938.1982674,0.00011,2]
[333874713,1722588639280,-1565.60813605,0.00011,2]
[333874716,1722588640443,-38.79232055,0.00011,2]
[333874717,1722588640606,-861.50000005,0.00011,2]
[333874718,1722588640618,-422.95610072,0.00011,2]
[333874989,1722588643492,-474862.30505802,0.00011,2]
[333875299,1722588646624,-133868.8254435,0.00011,2]
[333875371,1722589153605,1000.0,0.00025,60]
[333875385,1722589831459,-354.08,0.00010305,2]
[333875386,1722589831469,-298.64280494,0.000105,2]
[333875387,1722589831479,-300.0,0.00010899,2]
[333875388,1722589831488,-6857.47051847,0.000109,2]
[333875389,1722589831498,-302.1896074,0.000109,2]
[333875390,1722589831508,-299.96540194,0.000109,2]
[333875391,1722589831517,-217.85264522,0.000109,2]
[333875392,1722589831526,-237.48348932,0.000109,2]
[333875393,1722589831536,-1074.2827499,0.000109,2]
[333875394,1722589831546,-161.8,0.0001099,2]
[333875395,1722589831556,-215.61735731,0.00010997,2]
[333875396,1722589831565,-7316.7303447,0.00011,2]
[333875397,1722589831576,-16182.3,0.00011,2]
[333875398,1722589831588,-397.56791311,0.00011,2]
[333875399,1722589831600,-333.47900005,0.00011,2]
[333875400,1722589831612,-4687.88496515,0.00011,2]
[333875411,1722589832025,-544.90077358,0.00011,2]
[333875412,1722589832051,-652.96553068,0.00011,2]
[333875413,1722589832062,-4647.56500255,0.00011,2]
[333875414,1722589832073,-46234.43499745,0.00011,2]
[333875415,1722589832085,-1074.32,0.00011,2]
[333875416,1722589832097,-935.25814264,0.00011,2]
[333875417,1722589832108,-4555.22356862,0.00011,2]
[333875418,1722589832121,-1474.47,0.00011,2]
[333875419,1722589832134,-302.11780374,0.00011,2]
[333875420,1722589832145,-389.00967572,0.00011,2]
[333875421,1722589832157,-997.8724334,0.00011,2]
[333875422,1722589832168,-9457.79447527,0.00011,2]
[333875423,1722589832179,-30362.92421683,0.00011,2]
[333875438,1722589837455,-626.8385,0.000108,2]
[333875439,1722589837465,-9814.34148013,0.00011,2]
[333875476,1722589838089,-139164.37534587,0.00011,2]
[333875478,1722589838102,-4962.81,0.00011,2]
[333875526,1722589838530,-323.2,0.00011,2]
[333875528,1722589838542,-533048.51050886,0.00011,2]
[333875530,1722589838556,-493.31580501,0.00011,2]
[333875706,1722589840393,-71488.47131589,0.00011,2]
[333875707,1722589840405,-6690.12187582,0.00011,2]
[333875708,1722589840425,-6200.25729517,0.00011,2]
[333875709,1722589840442,-556.51987713,0.00011,2]
[333875710,1722589840453,-645.63974,0.00011,2]
[333875711,1722589840465,-832.89019302,0.00011,2]
[333875712,1722589840476,-316.39,0.00011,2]
[333875713,1722589840488,-329.75,0.00011,2]
[333875901,1722589842527,-3985.21532942,0.00011,2]
[333875903,1722589842538,-1352.0,0.00011,2]
[333875905,1722589842550,-554.37053907,0.00011,2]
[333875910,1722589842586,-474862.30505802,0.00011,2]
[333875917,1722589842646,-272295.81334104,0.00011,2]
[333875920,1722589842657,-292.35005528,0.00011,2]
[333875931,1722589842758,-5296.76582824,0.00011,2]
[333875933,1722589842770,-9013.5259233,0.00011,2]
[333875936,1722589842781,-1160.02723563,0.00011,2]
[333876202,1722589845854,-474638.26814159,0.00011,2]
[333876204,1722589845865,-3000.0,0.00011,2]
[333876206,1722589845875,-216.5,0.000111,2]
[333876208,1722589845885,-11294.43750437,0.00011105,2]
[333876210,1722589845894,-2729.58745025,0.00011105,2]
[333876212,1722589845904,-296.79061577,0.00011105,2]
[333876214,1722589845914,-155.0,0.00011105,2]
[333876215,1722589845924,-153.51,0.000113,2]
[333876217,1722589845935,-499.99,0.000113,2]
[333876219,1722589845944,-411.33551761,0.00011353,2]
[333876221,1722589845954,-387.79038477,0.00011496,2]
[333876223,1722589845964,-1000.0,0.00011603,2]
[333876225,1722589845974,-201.6,0.00011667,2]
[333876227,1722589845985,-158.72,0.00011859,2]
[333876229,1722589845995,-194.46,0.00011929,2]
[333876231,1722589846005,-6857.47051839,0.00011961,2]
[333876233,1722589846016,-299.96540189,0.00011961,2]
[333876235,1722589846026,-550.0,0.00012,2]
[333876273,1722589846387,-250.0,0.00012005,2]
[333876277,1722589846431,-217.85264518,0.00012186,2]
[333876279,1722589846441,-5105.28,0.00012269,2]
[333876281,1722589846451,-354.08,0.00012569,2]
[333876283,1722589846460,-198.4,0.00012654,2]
[333876285,1722589846469,-652.98954069,0.00012665,2]
[333876287,1722589846480,-158.84273734,0.0001269,2]
[333876290,1722589846490,-243.00643023,0.00012696,2]
[333876291,1722589846500,-1175.72672229,0.00012826,2]
[333876293,1722589846509,-237.48348931,0.00012875,2]
[333876295,1722589846519,-155.0,0.00012928,2]
[333876298,1722589846528,-6857.47051839,0.00013022,2]
[333876300,1722589846538,-299.96540189,0.00013022,2]
[333876302,1722589846547,-1000.0,0.00013053,2]
[333876304,1722589846557,-201.6,0.00013126,2]
[333876306,1722589846567,-302.18960737,0.0001315,2]
[333876307,1722589846576,-3000.0,0.000132,2]
[333876309,1722589846586,-3117.89233954,0.0001331,2]
[333876311,1722589846596,-158.72,0.00013341,2]
[333876313,1722589846606,-217.85264518,0.00013471,2]
[333876315,1722589846615,-154.78,0.00013529,2]
[333876317,1722589846625,-1396.49,0.00013699,2]
[333876319,1722589846634,-200.0,0.00013699,2]
[333876321,1722589846644,-339.02601606,0.00013873,2]
[333876323,1722589846654,-318480.95846797,0.000139,2]
[333876326,1722589846667,-1058.18632061,0.000139,2]
[333876328,1722589846680,-369.15130269,0.000139,2]
[333876332,1722589846710,-384.50318454,0.000139,2]
[333876334,1722589846722,-2925.7355855,0.000139,2]
[333876337,1722589846739,-1573.58351148,0.000139,2]
[333876339,1722589846751,-1035.94478947,0.000139,2]
[333876862,1722590298615,7382.92,0.00025,60]
[333876863,1722590500877,-200.0,0.00026198,120]
[333876864,1722590500940,-408916.79431977,0.00027,120]
[333876865,1722590583325,922.18915923,0.00027,120]
[333876866,1722590583363,800.0,0.00026986,120]
[333876867,1722590594509,681.0,0.00019442,120]
[333876868,1722590594546,681.0,0.00019432,120]
[333876869,1722590594578,681.0,0.00019422,120]
[333876870,1722590594643,681.0,0.00019989,120]
[333876871,1722590595130,681.0,0.00019979,120]
[333876872,1722590595592,681.0,0.00019969,120]
[333876873,1722590596059,681.0,0.00020536,120]
[333876874,1722590596546,681.0,0.00020526,120]
[333876875,1722590597008,681.0,0.0002098,120]
[333876876,1722590597501,683.33,0.0002097,120]
[333876877,1722590702853,800.0,0.00026986,120]
[333876878,1722590731650,2045.0,0.00027,120]
[333876883,1722590833644,800.0,0.00026986,120]
[333876887,1722590943616,800.0,0.00026986,120]
[333876888,1722591011794,800.0,0.00026986,120]
[333876919,1722591031660,-967.76681129,0.000108,2]
[333876922,1722591031669,-161.8,0.0001099,2]
[333876925,1722591031679,-45.41449899,0.00010999,2]
[333876928,1722591031690,-254.58550101,0.00010999,2]
[333876931,1722591031700,-221.09094443,0.00010999,2]
[333876934,1722591031710,-157.88606536,0.00010999,2]
[333876937,1722591031719,-7212.16356301,0.00011,2]
[333876940,1722591031731,-463.9638686,0.00011,2]
[333876942,1722591031742,-11204.32263688,0.00011,2]
[333876948,1722591031951,-1415.32309103,0.00011,2]
[333876949,1722591031963,-1200.0,0.00011,2]
[333876950,1722591034654,151.0,0.00020469,120]
[333876951,1722591037676,-62656.16647868,0.00011,2]
[333876952,1722591038534,-659.75132017,0.00011,2]
[333876953,1722591038547,-1120.66502401,0.00011,2]
[333876954,1722591038560,-17115.52529483,0.00011,2]
[333876955,1722591038572,-360829.09402012,0.00011,2]
[333876956,1722591038584,-576979.66838619,0.00011,2]
[333876957,1722591038595,-5065.1991,0.00011,2]
[333876958,1722591038607,-2417323.12059153,0.00011,2]
[333876959,1722591038617,-712.45046793,0.000113,2]
[333876960,1722591038626,-636.42228664,0.000114,2]
[333876961,1722591038635,-330.24945769,0.000114,2]
[333876962,1722591038645,-219.11714225,0.000116,2]
[333876963,1722591038654,-209.97578135,0.000119,2]
[333876964,1722591038665,-6169.1,0.000119,2]
[333876965,1722591038675,-550.0,0.00012,2]
[333876966,1722591038684,-420.0,0.00012087,2]
[333876967,1722591038694,-11052.9765,0.0001259,2]
[333876968,1722591038704,-344.23,0.00012811,2]
[333876969,1722591038713,-209.97578132,0.00012819,2]
[333876970,1722591038723,-3000.0,0.000132,2]
[333876971,1722591038733,-587.0,0.00013282,2]
[333876972,1722591038743,-219.11714221,0.00013675,2]
[333876973,1722591038752,-1117.19,0.00013699,2]
[333876974,1722591038763,-18434.165918,0.00013699,2]
[333876981,1722591039911,-153.81838546,0.00010997,2]
[333876982,1722591039921,-64.414082,0.00013699,2]
[333876983,1722591039930,-956.26740371,0.00013699,2]
[333876984,1722591039941,-28670.76259629,0.00013699,2]
[333876985,1722591039950,-209.97578132,0.00013738,2]
[333876986,1722591039959,-3117.89233954,0.00013799,2]
[333876987,1722591039968,-49828.0974608,0.000138,2]
[333876988,1722591039977,-160.24817792,0.00013825,2]
[333876989,1722591039987,-628.03292822,0.00013879,2]
[333876990,1722591039998,-206.56999632,0.00013896,2]
[333876991,1722591040007,-183.52772777,0.00013899,2]
[333876992,1722591040017,-1486.9051058,0.00013899,2]
[333876993,1722591040026,-155.0,0.00013899,2]
[333876994,1722591040036,-2899.07639,0.000139,2]
[333876995,1722591040045,-303530.242258,0.000139,2]
[333876996,1722591040054,-166.67,0.00013973,2]
[333876997,1722591040063,-163.53,0.00013973,2]
[333876998,1722591040073,-740.88,0.00013973,2]
[333876999,1722591040082,-1481.12,0.00014,2]
[333877000,1722591040091,-499.99,0.00014,2]
[333877036,1722591040480,-600.0,0.00014,2]
[333877038,1722591040494,-180.2024944,0.00014105,2]
[333877040,1722591040503,-420.52,0.00014192,2]
[333877042,1722591040514,-161.51,0.00014192,2]
[333877044,1722591040524,-265.46,0.000143,2]
[333877046,1722591040533,-250.0,0.00014375,2]
[333877048,1722591040542,-1117.19,0.00014384,2]
[333877050,1722591040552,-347.33676494,0.00014579,2]
[333877052,1722591040561,-759.9667326,0.00014579,2]
[333877054,1722591040570,-201.6,0.00014584,2]
[333877056,1722591040578,-823.0,0.00014595,2]
[333877058,1722591040587,-209.97578132,0.00014658,2]
[333877060,1722591040597,-9550.44681982,0.00014741,2]
[333877062,1722591040607,-1000.0,0.00014762,2]
[333877064,1722591040617,-357.09487431,0.00014789,2]
[333877066,1722591040628,-158.73,0.00014791,2]
[333877068,1722591040639,-519.94804417,0.00014896,2]
[333877070,1722591040650,-891.68121634,0.00014899,2]
[333877072,1722591040660,-183.8,0.0001491,2]
[333877074,1722591040669,-2899.07639,0.0001494,2]
[333877076,1722591040678,-203.20879356,0.00014999,2]
[333877078,1722591040688,-269.23957621,0.00015,14]
[333877080,1722591040698,-1138.0,0.00015,2]
[333877083,1722591040709,-4559.0,0.00015,2]
[333877085,1722591040719,-522.40245172,0.00015,2]
[333877086,1722591040728,-1117.19,0.00015068,2]
[333877088,1722591040738,-344.23,0.00015075,2]
[333877091,1722591040748,-21857.28,0.00015117,2]
[333877092,1722591040757,-185.95,0.00015151,2]
[333877094,1722591040767,-154.62,0.00015248,2]
[333877096,1722591040776,-292.1,0.00015248,5]
[333877098,1722591040785,-154.62,0.00015256,2]
[333877100,1722591040794,-200.0,0.00015258,2]
[333877102,1722591040804,-154.62,0.00015263,2]
[333877104,1722591040813,-154.62,0.00015271,2]
[333877106,1722591040823,-154.62,0.00015279,2]
[333877108,1722591040832,-154.62,0.00015286,2]
[333877110,1722591040841,-154.62,0.00015294,2]
[333877112,1722591040850,-154.62,0.00015301,2]
[333877114,1722591040860,-1937.05551355,0.00015309,2]
[333877116,1722591040869,-154.62,0.00015309,2]
[333877118,1722591040879,-154.62,0.00015317,2]
[333877120,1722591040889,-154.62,0.00015324,2]
[333877121,1722591040899,-623.71755966,0.00015369,2]
[333877123,1722591040909,-420.52,0.00015425,2]
[333877125,1722591040919,-420.52,0.00015425,2]
[333877127,1722591040928,-335.16,0.00015425,2]
[333877129,1722591040938,-420.52,0.00015425,2]
[333877131,1722591040947,-420.52,0.00015425,2]
[333877133,1722591040956,-419.05,0.00015425,2]
[333877135,1722591040966,-1554.952,0.00015427,2]
[333877137,1722591040975,-349.0,0.00015427,2]
[333877139,1722591040984,-150.0,0.00015427,2]
[333877141,1722591040993,-5125.0,0.00015427,2]
[333877143,1722591041002,-1580.0,0.00015427,2]
[333877145,1722591041012,-150.0,0.00015427,2]
[333877147,1722591041021,-1201.0,0.00015427,2]
[333877149,1722591041030,-811.0,0.00015427,2]
[333877151,1722591041040,-446.0,0.00015427,2]
[333877153,1722591041050,-450.0,0.00015427,2]
[333877155,1722591041060,-209.97578132,0.00015577,2]
[333877157,1722591041070,-636.42228662,0.0001565,2]
[333877159,1722591041083,-219.11714221,0.0001575,2]
[333877161,1722591041092,-1117.19,0.00015753,2]
[333877163,1722591041101,-150.038,0.00015788,2]
[333877165,1722591041110,-150.0,0.00015788,2]
[333877167,1722591041119,-150.08,0.00015788,2]
[333877169,1722591041128,-155.60903227,0.000158,2]
[333877171,1722591041137,-3000.0,0.000159,2]
[333877173,1722591041147,-150.0,0.00015973,2]
[333877174,1722591041156,-150.0,0.00015973,2]
[333877175,1722591041165,-356.08,0.00015973,2]
[333877176,1722591041174,-650.0,0.00016,2]
[333877177,1722591041183,-1152.0,0.00016039,2]
[333877178,1722591041193,-201.6,0.00016043,2]
[333877179,1722591041203,-718.13742074,0.00016113,2]
[333877180,1722591041211,-2899.07639,0.0001619,2]
[333877181,1722591041221,-1117.19,0.00016438,2]
[333877182,1722591041230,-1049.57124552,0.00016441,40]
[333877183,1722591041239,-1621.96390599,0.0001647,2]
[333877184,1722591041248,-209.97578132,0.00016496,2]
[333877186,1722591041258,-1000.0,0.00016607,2]
[333877187,1722591041269,-1762.37384286,0.00016699,2]
[333877188,1722591041278,-162.54,0.00016712,2]
[333877189,1722591041288,-183.8,0.00016774,2]
[333877191,1722591041297,-1073.58046777,0.00016799,2]
[333877193,1722591041307,-805.44,0.00016849,2]
[333877195,1722591041316,-722.68329662,0.00016882,2]
[333877197,1722591041325,-476.4573429,0.00016897,2]
[333877199,1722591041335,-1767.7101,0.00016899,2]
[333877201,1722591041345,-522.31224238,0.00016949,2]
[333877203,1722591041354,-155.0,0.00016949,2]
[333877205,1722591041364,-546.25951374,0.0001695,2]
[333877207,1722591041374,-600.14164396,0.0001695,2]
[333877208,1722591041383,-165.34908523,0.00016951,2]
[333877210,1722591041393,-164.23596765,0.00016953,2]
[333877212,1722591041402,-367.52817725,0.00016953,2]
[333877214,1722591041412,-159.44788772,0.00016953,2]
[333877216,1722591041421,-637.88,0.00016986,2]
[333877218,1722591041430,-484.69898026,0.00016999,2]
[333877220,1722591041439,-155.0,0.00016999,2]
[333877222,1722591041449,-155.0,0.00017004,2]
[333877224,1722591041458,-155.41882325,0.00017004,2]
[333877226,1722591041469,-155.0,0.00017004,2]
[333877228,1722591041483,-379.95855132,0.00017004,2]
[333877230,1722591041492,-4986.8755,0.00017045,2]
[333877232,1722591041501,-33020.0,0.00017146,2]
[333877233,1722591041512,-155.60903227,0.00017167,2]
[333877235,1722591041521,-196.9278947,0.00017259,2]
[333877237,1722591041531,-151.67,0.0001726,2]
[333877239,1722591041540,-323.48,0.0001726,2]
[333877241,1722591041552,-1060.07,0.0001726,2]
[333877243,1722591041561,-356.11,0.0001726,2]
[333877245,1722591041570,-150.0,0.0001726,2]
[333877247,1722591041579,-356.11,0.0001726,2]
[333877249,1722591041588,-344.23,0.00017338,2]
[333877251,1722591041597,-209.97578132,0.00017415,2]
[333877253,1722591041607,-2899.07639,0.0001744,2]
[333877255,1722591041616,-150.0,0.000175,2]
[333877257,1722591041625,-201.6,0.00017501,2]
[333877259,1722591041635,-347.59086137,0.00017608,2]
[333877261,1722591041644,-454.12693481,0.00017608,2]
[333877263,1722591041653,-1613.0,0.00017625,2]
[333877265,1722591041662,-155.0,0.00017739,2]
[333877267,1722591041671,-155.0,0.00017799,2]
[333877269,1722591041681,-164.21268611,0.00017807,2]
[333877271,1722591041690,-219.11714221,0.00017825,2]
[333877273,1722591041699,-11541.41705402,0.0001788,2]
[333877275,1722591041708,-535.42333167,0.00018,2]
[333877277,1722591041718,-372.26052401,0.00018,2]
[333877279,1722591041727,-700.0,0.00018,2]
[333877281,1722591041736,-253.7,0.00018,2]
[333877283,1722591041746,-775.1,0.00018,2]
[333877285,1722591041756,-361.0,0.00018,2]
[333877287,1722591041767,-1000.0,0.00018,2]
[333877289,1722591041776,-209.97578132,0.00018335,2]
[333877291,1722591041786,-1000.0,0.00018452,2]
[333877293,1722591041795,-158.73,0.00018488,2]
[333877295,1722591041805,-1060.805279,0.000185,2]
[333877296,1722591041814,-155.60903227,0.00018533,2]
[333877298,1722591041823,-359.03203292,0.00018547,2]
[333877300,1722591041832,-401.62032055,0.00018547,2]
[333877302,1722591041842,-3000.0,0.000186,2]
[333877304,1722591041851,-183.8,0.00018637,2]
[333877306,1722591041861,-2899.0764,0.0001869,2]
[333877308,1722591041871,-150.0,0.00018788,2]
[333877310,1722591041880,-1000.0,0.000188,2]
[333877312,1722591041889,-1006.0,0.000189,2]
[333877313,1722591041899,-370.21098026,0.00018999,2]
[333877315,1722591041908,-1476.569091,0.00019,2]
[333877317,1722591041917,-1000.0,0.00019,2]
[333877319,1722591041926,-175.559162,0.00019062,2]
[333877321,1722591041936,-500.0,0.00019178,2]
[333877323,1722591041945,-500.0,0.00019178,2]
[333877325,1722591041955,-156.87,0.00019178,2]
[333877327,1722591041964,-935.41206881,0.00019178,2]
[333877329,1722591041974,-500.0,0.00019178,2]
[333877331,1722591041983,-1000.0,0.00019178,2]
[333877333,1722591041993,-553.56,0.00019178,2]
[333877335,1722591042003,-20000.0,0.00019178,2]
[333877337,1722591042012,-1180.09,0.00019178,2]
[333877339,1722591042022,-2258.46,0.00019178,2]
[333877341,1722591042031,-2000.0,0.00019178,2]
[333877343,1722591042041,-1066.54,0.00019178,2]